Cogmind - Beta 10.2 @@@ ROGUE MODE // 2020.12.13 @ 18:54:55 Player: Runia Result: Destroyed by Lightning with EMDS Performance ------------- Evolutions (4) 2000 Regions Visited (9) 1800 Robots Destroyed (146) 730 Value Destroyed (5400) 5400 Prototype IDs (11) 220 Alien Tech Used (0) 0 Bonus (1345) 1345 TOTAL SCORE: 11495 Bonus ------- High Alert Combat Kills 102 Follower Combat Kills 916 Network Hubs Disabled 200 A7 Reached Mainframe 300 Friendly Fire -173 Cogmind --------- Core Integrity 0/850 Matter 300/300 Energy 89/100 System Corruption 14% Temperature Cool (0) Movement Core (50) Location -6/Hub_04(d) Parts ------- > --- POWER (1) -------- (None) > --- PROPULSION (4) --- (None) > --- UTILITY (7) ------ Advanced Heat Sink Improved Terrain Scan Processor > --- WEAPON (3) ------- (None) > --- INVENTORY (4) ---- Weapon Cycler Improved ECM Suite Heavy Ion Cannon Improved KE Penetrator Peak State ------------ > --- POWER ------------ Reinforced Deuterium Engine > --- PROPULSION ------- Improved Treads Medium Treads Centrium Heavy Treads > --- UTILITY ---------- Advanced Heat Sink Large Storage Unit Large Storage Unit Large Storage Unit Large Storage Unit Improved Terrain Scan Processor Centrium Medium Armor Plating > --- WEAPON ----------- Heavy Laser Force Rifle Advanced Variable Charge Gun > --- INVENTORY -------- Improved Deuterium Engine Quantum Reactor High-capacity Matter Pod Advanced Terrain Scanner Energy Filter Weapon Cycler Weapon Cycler Improved Transmission Jammer Improved ECM Suite Improved Propulsion Shielding Improved Light Armor Plating Improved Light Armor Plating Layered Medium Armor Plating Improved System Shield Heavy Laser Wave Gun Advanced Variable Charge Gun Improved EM Pulse Cannon Heavy Ion Cannon Gauss Rifle Heavy Machine Gun KE Penetrator Improved KE Penetrator Remote Datajack Axe [Rating: 77] Favorites ----------- Power Heavy Ion Engine Engine Heavy Ion Engine Propulsion Light Treads Treads Light Treads Leg Carbon-fiber Leg Wheel Compact Wheel Utility Large Storage Unit Device Advanced Sensor Array Storage Large Storage Unit Processor Signal Interpreter Hackware Hacking Suite Protection Hardened Light Armor Plating Weapon Heavy Assault Rifle Energy Gun Heavy Laser Energy Cannon Heavy Ion Cannon Ballistic Gun Heavy Assault Rifle Launcher Improved Grenade Launcher Slashing Weapon Axe Build | -11 -10 -9 -8 -7 -6 -6 -6 -6 -6 ------- Run | Scr Mat Mat Mat Fac Fac Ext Cet Arc Hub Slots Evolved 8 | . . 2 2 2 2 . . . . Power . | . . . . . . . . . . Propulsion 2 | . . . . 1 1 . . . . Utility 5 | . . 2 2 . 1 . . . . Weapon 1 | . . . . 1 . . . . . Parts Attached 184 | 2 7 12 53 60 8 25 6 3 8 Power 12 | . . 2 6 2 . 2 . . . Engine 12 | . . 2 6 2 . 2 . . . Core . | . . . . . . . . . . Reactor . | . . . . . . . . . . Propulsion 41 | 2 1 3 11 10 3 2 2 2 5 Treads 20 | 1 1 1 3 6 2 2 . 2 2 Leg 9 | . . . 8 . . . . . 1 Wheel 12 | 1 . 2 . 4 1 . 2 . 2 Hover . | . . . . . . . . . . Flight . | . . . . . . . . . . Utility 60 | . 1 6 17 19 4 10 1 1 1 Device 21 | . . 1 6 7 1 4 1 . 1 Storage 15 | . 1 1 8 3 1 1 . . . Processor 3 | . . 1 . 1 1 . . . . Hackware 6 | . . 1 1 2 . 2 . . . Protection 15 | . . 2 2 6 1 3 . 1 . Artifact . | . . . . . . . . . . Weapon 71 | . 5 1 19 29 1 11 3 . 2 Energy Gun 19 | . . . 7 5 . 3 2 . 2 Energy Cannon 21 | . . . 2 14 1 4 . . . Ballistic Gun 19 | . 5 1 4 5 . 3 1 . . Ballistic Cannon . | . . . . . . . . . . Launcher 5 | . . . 3 2 . . . . . Special Weapon . | . . . . . . . . . . Impact Weapon . | . . . . . . . . . . Slashing Weapon 7 | . . . 3 3 . 1 . . . Piercing Weapon . | . . . . . . . . . . Special Melee Weapon . | . . . . . . . . . . Unidentified Prototypes 7 | . . . 2 . . 1 2 1 1 Parts Lost 44 | . . 2 9 8 2 4 3 4 12 Power 4 | . . 1 1 . . 1 . . 1 Propulsion 13 | . . 1 2 . 1 . 1 3 5 Utility 8 | . . . 1 2 . 1 1 1 2 Weapon 19 | . . . 5 6 1 2 1 . 4 Highest Loss Streak 9 | . . 1 3 4 2 4 3 4 9 Average Slot Usage (%) 97 | . 99 99 97 99 93 93 99 93 93 Engine 7 | . 14 11 8 6 6 6 6 6 5 Treads 11 | . 14 11 4 15 13 13 13 17 16 Leg 2 | . . . 10 . . . . . 3 Wheel 5 | . 14 11 2 6 6 6 12 2 2 Device 9 | . . 3 17 10 8 7 6 6 6 Storage 22 | . 27 22 18 20 26 24 26 26 25 Processor 6 | . . 10 9 5 6 6 6 6 6 Hackware 3 | . . 2 3 5 . 4 . . . Protection 3 | . . 4 4 1 3 2 6 6 5 Energy Gun 5 | . . . 5 5 2 2 11 13 14 Energy Cannon 4 | . . . 3 8 10 9 . . . Ballistic Gun 9 | . 28 22 7 6 6 6 6 6 3 Naked Turns . | . . . . . . . . . . Heaviest Build 105 | 12 23 32 51 85 97 105 105 102 102 Greatest Support 131 | 10 10 10 40 60 28 60 60 81 131 Greatest Overweight (x) 33 | 1 2 3 3 8 3 3 3 33 30 Average Overweight (x) 2 | 1 1 2 1 3 3 2 2 1 1 Largest Inventory Capacity 28 | 6 10 12 16 22 28 28 28 28 28 Average Capacity 18 | 6 9 10 12 19 27 26 28 28 27 Most Carried 28 | 6 10 12 16 22 22 28 28 28 28 Average Carried 17 | 5 8 9 11 18 17 21 27 27 26 Final Capacity 28 | 6 10 12 16 22 28 28 28 28 4 Final Carried 28 | 4 10 10 16 22 18 27 28 28 4 Class Distribution -------------------- 26% | Scavenger-Mutant 15% | Mutant 14% | Scavenger-Tank 11% | Hauler-Tank 10% | Hauler-Gunner 8% | Scavenger-Skirmisher 8% | Hauler-Skirmisher 4% | Hauler-Mutant Dominant Class ---------------- Mutant | -10/Materials Mutant | -9/Materials Scavenger-Mutant | -8/Materials Scavenger-Skirmisher | -7/Factory Hauler-Tank | -6/Factory Hauler-Tank | -6/Extension Scavenger-Tank | -6/Cetus Scavenger-Tank | -6/Archives Scavenger-Tank | -6/Hub_04(d) Resources | -11 -10 -9 -8 -7 -6 -6 -6 -6 -6 ----------- Run | Scr Mat Mat Mat Fac Fac Ext Cet Arc Hub Matter Collected 3945 | 200 193 589 997 1151 132 331 149 125 78 Remotely . | . . . . . . . . . . Salvage Created 6323 | . 298 800 1275 1762 321 777 409 321 360 Parts 312 | . 28 43 71 81 11 24 12 9 33 Haulers Intercepted 4 | . . 2 2 . . . . . . Recyclers Shooed 6 | . . 1 3 1 . 1 . . . Parts Field Recycled . | . . . . . . . . . . Retrieved Matter . | . . . . . . . . . . Parts Self-Destructed . | . . . . . . . . . . Prevented . | . . . . . . . . . . Kills | -11 -10 -9 -8 -7 -6 -6 -6 -6 -6 ------- Run | Scr Mat Mat Mat Fac Fac Ext Cet Arc Hub Combat Hostiles Destroyed 106 | . 7 15 29 28 5 7 6 4 5 Melee 1 | . . . 1 . . . . . . Guns 62 | . 7 15 14 10 2 1 5 3 5 Cannons 26 | . . . 6 10 3 6 1 . . AOE 16 | . . . 8 8 . . . . . Classes Destroyed 14 | . 4 4 1 4 . 1 . . . Worker 5 | . . . . 2 . . . . 3 Builder 10 | . . 1 2 1 1 1 . . 4 Hauler 4 | . . 2 2 . . . . . . Recycler 8 | . . 1 . 6 . 1 . . . Operator 5 | . 2 . 1 1 . . . . 1 Watcher 8 | . 2 1 3 1 . . . . 1 Swarmer 20 | . 2 3 8 3 . . . . 4 Grunt 49 | . 5 7 13 13 4 3 4 . . Brawler 1 | . . . . 1 . . . . . Duelist 1 | . . . . 1 . . . . . Sentry 25 | . . 5 7 5 1 3 . 4 . Hunter 2 | . . . 1 1 . . . . . Programmer 5 | . . . . 4 . . . . 1 Behemoth 1 | . . . . . . 1 . . . Cetus Guard 2 | . . . . . . . 2 . . Best Kill Streak 8 | . 4 5 6 8 5 2 3 2 5 Combat Bots Only 8 | . 2 5 5 8 4 2 3 2 4 Max Kills in Single Turn 5 | . 1 1 5 3 1 1 2 1 2 Gunslinging 1 | . . . . . . . 1 . 1 Exploded 4 | . . . 4 3 . . . . . Melee 1 | . . . 1 . . . . . . Uniques/NPCs Destroyed . | . . . . . . . . . . Combat | -11 -10 -9 -8 -7 -6 -6 -6 -6 -6 -------- Run | Scr Mat Mat Mat Fac Fac Ext Cet Arc Hub Damage Taken 10511 | . 324 744 1975 2117 495 1142 473 1099 2142 Core 1512 | . 21 109 337 166 80 44 57 96 602 Absorbed by Shields 548 | . . . . . . 242 306 . . Core Remaining (%) 75 | 100 91 72 38 76 . . . . . Volleys Fired 370 | . 34 61 96 73 14 28 21 25 18 Largest 3 | . 2 2 2 3 3 3 3 3 3 Hottest 344 | . 40 46 138 173 173 162 184 344 229 Shots Fired 853 | . 68 122 179 203 38 82 56 55 50 Gun 628 | . 68 122 122 101 18 39 53 55 50 Cannon 212 | . . . 49 97 20 43 3 . . Launcher 13 | . . . 8 5 . . . . . Special . | . . . . . . . . . . Kinetic 433 | . 68 122 80 67 13 27 21 25 10 Thermal 376 | . . . 91 115 17 49 35 30 39 Explosive 13 | . . . 8 5 . . . . . Electromagnetic 31 | . . . . 16 8 6 . . 1 Robot Hit Streak 22 | . 7 13 22 13 6 11 6 6 11 Robot Miss Streak 9 | . 2 6 3 5 9 4 3 3 3 Penetration Max 1 | . . . . . . . 1 1 . Secondary Targets 5 | . . 1 . . . . 2 . 2 Max Gunslinging Chain 2 | . . 1 . . . . 1 . 2 Shots Hit Robots 577 | . 41 79 132 132 31 63 34 39 26 Core Hits 298 | . 20 30 64 85 19 35 15 12 18 Critical Hits 13 | . 1 1 1 . 1 . 3 3 3 Critical Kills 5 | . 1 . 1 . . . 2 1 . Critical Parts Destroyed 7 | . . 1 . . 1 . 1 1 3 Melee Attacks 20 | . . . 11 5 . 4 . . . Impact . | . . . . . . . . . . Slashing 20 | . . . 11 5 . 4 . . . Piercing . | . . . . . . . . . . Sneak Attacks 1 | . . . . 1 . . . . . Combat Hostiles . | . . . . . . . . . . Follow-up Attacks . | . . . . . . . . . . Damage Inflicted 14898 | . 453 1157 3337 3905 857 1937 1076 883 1293 Guns 7827 | . 453 1157 1425 1194 208 577 995 883 935 Cannons 4310 | . . . 1000 1829 462 938 81 . . Explosions 2035 | . . . 769 723 187 . . . 356 Melee 724 | . . . 143 159 . 422 . . . Ramming 2 | . . . . . . . . . 2 Kinetic 4770 | . 453 1157 867 734 144 421 365 447 182 Thermal 7001 | . . . 1623 2057 467 954 711 436 753 Explosive 1305 | . . . 704 601 . . . . . Electromagnetic 1096 | . . . . 354 246 140 . . 356 Impact . | . . . . . . . . . . Slashing 724 | . . . 143 159 . 422 . . . Piercing . | . . . . . . . . . . Highest Corruption 14 | . . 1 . 4 . . . . 14 Average Corruption 1 | . . 1 . 2 . . . . 2 Corruption Purged . | . . . . . . . . . . Effects 21 | . . 3 . 17 . . . . 1 Message Errors 2 | . . 1 . . . . . . 1 Matter Fused 3 | . . . . 3 . . . . . Heat Flow Errors 1 | . . . . 1 . . . . . Energy Discharges 3 | . . . . 3 . . . . . Data Loss (minor) 7 | . . 1 . 6 . . . . . Targeting Errors 3 | . . 1 . 2 . . . . . Weapon Failures 2 | . . . . 2 . . . . . Overload Shots 2 | . . . . . . . . 2 . Overflow Damage 224 | . . . 21 91 8 99 . . 5 Projectiles 98 | . . . . 61 8 29 . . . Explosions 56 | . . . 21 30 . . . . 5 Melee 70 | . . . . . . 70 . . . Knockbacks . | . . . . . . . . . . Impact . | . . . . . . . . . . Kinetic . | . . . . . . . . . . Secondary . | . . . . . . . . . . Self-Inflicted Damage 423 | . . . 125 124 69 . . . 105 Shots 8 | . . . 4 2 1 . . . 1 Rammed 1 | . . . . . . . . . 1 Targets Rammed 1 | . . . . . . . . . 1 Kicked . | . . . . . . . . . . Crushed . | . . . . . . . . . . Highest Temperature 429 | . 12 12 108 171 15 240 292 429 200 Average Temperature 50 | . 6 3 26 23 9 60 94 189 52 Received Heat Transfer 2467 | . 84 291 783 567 165 230 125 180 42 Effects 2 | . . . . . . . 1 1 . Energy Bleed 1 | . . . . . . . . 1 . Interference 1 | . . . . . . . 1 . . Siege Activations . | . . . . . . . . . . Robots Corrupted . | . . . . . . . . . . Combat Hostiles . | . . . . . . . . . . Parts Fried 4 | . . . . 2 1 . . . 1 Impact Corruptions . | . . . . . . . . . . Robots Melted 1 | . . . . . . . . 1 . Combat Hostiles 1 | . . . . . . . . 1 . Parts Melted 19 | . . . 4 8 1 1 1 2 2 Heat Transferred 10365 | . . . 2640 2953 596 1369 1018 753 1036 Parts Sabotaged . | . . . . . . . . . . Parts Stolen . | . . . . . . . . . . Parts Stripped . | . . . . . . . . . . Power Chain Reactions 1 | . . . . . 1 . . . . Missiles Intercepted . | . . . . . . . . . . Alert | -11 -10 -9 -8 -7 -6 -6 -6 -6 -6 ------- Run | Scr Mat Mat Mat Fac Fac Ext Cet Arc Hub Peak Influence 610 | . 284 390 525 423 246 610 552 369 401 Initial 341 | . . 3 153 238 104 120 341 220 58 Average 225 | . 112 188 273 172 186 276 398 311 180 Maximum Alert Level 2 | . 1 1 2 2 1 2 2 1 2 Low Security (%) 39 | 100 73 47 23 53 51 34 . 12 53 Level 1 52 | . 26 52 64 44 48 48 56 87 45 Level 2 7 | . . . 11 2 . 17 43 . . Level 3 . | . . . . . . . . . . Level 4 . | . . . . . . . . . . Level 5 . | . . . . . . . . . . High Security . | . . . . . . . . . . Max Security . | . . . . . . . . . . Squads Dispatched 26 | . 2 2 5 11 1 1 1 . 3 Investigation 5 | . . . 3 1 . . 1 . . Extermination 5 | . . . . 4 . . . . 1 Reinforcement 11 | . 2 2 2 3 . 1 . . 1 Assault 1 | . . . . . . . . . 1 Garrison 4 | . . . . 3 1 . . . . Intercept . | . . . . . . . . . . Construction Impeded 2 | . . . . 1 . 1 . . . Haulers Reinforced . | . . . . . . . . . . Stealth | -11 -10 -9 -8 -7 -6 -6 -6 -6 -6 --------- Run | Scr Mat Mat Mat Fac Fac Ext Cet Arc Hub Distress Signals 11 | . 1 1 3 2 1 . 1 . 2 Communications Jammed . | . . . . . . . . . . Distress Signals . | . . . . . . . . . . Times Spotted 215 | . 17 22 48 45 7 26 13 7 30 Peak Tracking Total 20 | . 3 7 6 9 6 5 5 1 20 Tactical Retreats 11 | . 1 3 3 2 . 1 . . 1 Traps | -11 -10 -9 -8 -7 -6 -6 -6 -6 -6 ------- Run | Scr Mat Mat Mat Fac Fac Ext Cet Arc Hub Traps Triggered 12 | . . 2 2 5 . 2 . . 1 Indirectly 1 | . . . . . . . . . 1 Trap Hack Attempts . | . . . . . . . . . . Triggered . | . . . . . . . . . . Disarmed . | . . . . . . . . . . Reprogrammed . | . . . . . . . . . . Reused . | . . . . . . . . . . Traps Extracted . | . . . . . . . . . . Installed . | . . . . . . . . . . Triggered . | . . . . . . . . . . Machines | -11 -10 -9 -8 -7 -6 -6 -6 -6 -6 ---------- Run | Scr Mat Mat Mat Fac Fac Ext Cet Arc Hub Machines Disabled 31 | . 1 4 5 4 1 1 4 3 8 Max in Single Turn 5 | . 1 1 3 2 1 . 2 1 5 Garrison Access 2 | . . . . . 1 . . . 1 Network Hub 1 | . . . . . . . . . 1 Machines Sabotaged . | . . . . . . . . . . Garrisons Compromised . | . . . . . . . . . . Overloaded Fab Kills . | . . . . . . . . . . Fab Network Shutdowns . | . . . . . . . . . . Hacking | -11 -10 -9 -8 -7 -6 -6 -6 -6 -6 --------- Run | Scr Mat Mat Mat Fac Fac Ext Cet Arc Hub Machines Accessed 46 | . 4 6 10 10 3 11 1 1 . Terminals 32 | . 4 5 6 5 1 10 1 . . Fabricators 2 | . . . . 2 . . . . . Repair Stations 4 | . . . 2 1 . 1 . . . Recycling Units 1 | . . . . 1 . . . . . Scanalyzers 3 | . . 1 1 . 1 . . . . Garrison Access 3 | . . . 1 1 1 . . . . Total Hacks 153 | . 10 24 29 24 16 23 2 25 . Successful 95 | . 5 13 16 13 13 10 . 25 . Failed 58 | . 5 11 13 11 3 13 2 . . Catastrophic 11 | . 1 1 4 1 1 1 2 . . Database Lockouts . | . . . . . . . . . . Manual 24 | . 1 8 12 2 . . . 1 . Terminals 76 | . 10 14 16 16 1 17 2 . . Fabricators 3 | . . . . 3 . . . . . Repair Stations 17 | . . . 9 2 . 6 . . . Recycling Units 2 | . . . . 2 . . . . . Scanalyzers 25 | . . 10 3 . 12 . . . . Garrison Access 5 | . . . 1 1 3 . . . . Terminal Hacks 57 | . 5 4 5 8 1 9 . 25 . Record 25 | . . . . . . . . 25 . Prototype ID Bank 2 | . . . . 1 . 1 . . . Open Door 7 | . . . . . 1 6 . . . Level Access Points 1 | . 1 . . . . . . . . Branch Access Points 3 | . . 1 1 . . 1 . . . Terminal Index 1 | . . . 1 . . . . . . Alert Level 5 | . 2 3 . . . . . . . Unreport Threat 6 | . 1 . 2 3 . . . . . Locate Traps 3 | . 1 . . 2 . . . . . Recall Investigation 1 | . . . 1 . . . . . . Recall Reinforcements 1 | . . . . 1 . . . . . Zone Layout 2 | . . . . 1 . 1 . . . Fabricator Hacks 3 | . . . . 3 . . . . . Load Schematic 1 | . . . . 1 . . . . . Build 2 | . . . . 2 . . . . . Repair Station Hacks 11 | . . . 8 2 . 1 . . . Scan Component 6 | . . . 4 1 . 1 . . . Repair 5 | . . . 4 1 . . . . . Recycling Unit Hacks . | . . . . . . . . . . Scanalyzer 22 | . . 9 2 . 11 . . . . Insert Component 12 | . . 5 1 . 6 . . . . Analyze 10 | . . 4 1 . 5 . . . . Garrison Access Hacks 1 | . . . . . 1 . . . . Seal Access 1 | . . . . . 1 . . . . Unauthorized Hacks 1 | . . . 1 . . . . . . Terminals . | . . . . . . . . . . Fabricators . | . . . . . . . . . . Repair Stations . | . . . . . . . . . . Recycling Units . | . . . . . . . . . . Scanalyzers . | . . . . . . . . . . Garrison Access 1 | . . . 1 . . . . . . Decoy 1 | . . . 1 . . . . . . Data Cores Recovered 1 | . . . . . . 1 . . . Used . | . . . . . . . . . . Hacking Detections 35 | . 4 6 8 8 1 7 1 . . Full Trace Events 3 | . . . 1 1 . . 1 . . Feedback Events . | . . . . . . . . . . Feedback Blocked . | . . . . . . . . . . Robot Schematics Acquired . | . . . . . . . . . . Robots Built . | . . . . . . . . . . Matter 219 | . . . . 219 . . . . . Time 116 | . . . . 116 . . . . . Total Robot Build Rating . | . . . . . . . . . . Part Schematics Acquired 10 | . . 4 1 . 5 . . . . Parts Built 1 | . . . . 1 . . . . . Matter 146 | . . . . 146 . . . . . Time 36 | . . . . 36 . . . . . Total Part Build Rating 3 | . . . . 3 . . . . . Parts Repaired 5 | . . . 4 1 . . . . . Time 180 | . . . 164 16 . . . . . Parts Recycled . | . . . . . . . . . . Recycled Matter . | . . . . . . . . . . Retrieved Matter . | . . . . . . . . . . Retrieved Components . | . . . . . . . . . . Parts Scanalyzed 10 | . . 4 1 . 5 . . . . Part Schematics Acquired 10 | . . 4 1 . 5 . . . . Parts Damaged 1 | . . . . . 1 . . . . Bothacking | -11 -10 -9 -8 -7 -6 -6 -6 -6 -6 ------------ Run | Scr Mat Mat Mat Fac Fac Ext Cet Arc Hub Used RIF Installer . | . . . . . . . . . . Robots Hacked . | . . . . . . . . . . Non-combat . | . . . . . . . . . . Combat . | . . . . . . . . . . Robot Hacks Applied . | . . . . . . . . . . Relay Couplers Released . | . . . . . . . . . . Robots Rewired . | . . . . . . . . . . Allies Hacked . | . . . . . . . . . . Hacks Repelled . | . . . . . . . . . . Allies | -11 -10 -9 -8 -7 -6 -6 -6 -6 -6 -------- Run | Scr Mat Mat Mat Fac Fac Ext Cet Arc Hub Total Allies 9 | . . . . . . 9 . . . Largest Group 7 | . . . . . . 7 7 1 . Highest-Rated Group 313 | . . . . . . 313 307 127 . Highest-Rated Ally 156 | . . . . . . 156 150 127 . Total Orders . | . . . . . . . . . . Ally Attacks 184 | . . . . . . 130 54 . . Total Damage 4190 | . . . . . . 3046 1144 . . Kills 24 | . . . . . . 17 7 . . Allies Corrupted . | . . . . . . . . . . Allies Melted . | . . . . . . . . . . Intel | -11 -10 -9 -8 -7 -6 -6 -6 -6 -6 ------- Run | Scr Mat Mat Mat Fac Fac Ext Cet Arc Hub Robot Analysis Total . | . . . . . . . . . . Derelict Logs Recovered . | . . . . . . . . . . Drone Launches . | . . . . . . . . . . Drone Recoveries . | . . . . . . . . . . Exploration | -11 -10 -9 -8 -7 -6 -6 -6 -6 -6 ------------- Run | Scr Mat Mat Mat Fac Fac Ext Cet Arc Hub Turns Passed 7849 | 4 484 734 1979 2343 189 864 326 457 469 Spaces Moved 3993 | 1 308 499 892 1097 98 520 178 207 193 Core 19 | . . . . . . . . 1 18 Treads 694 | . . . 115 240 . 14 18 157 150 Legs 471 | . . . 471 . . . . . . Wheels 2809 | 1 308 499 306 857 98 506 160 49 25 Hover . | . . . . . . . . . . Flight . | . . . . . . . . . . Fastest Speed 50 | 90 90 100 100 120 130 120 130 130 50 Average Speed 135 | 90 92 100 141 148 130 130 135 175 165 Slowest Speed 1700 | 90 100 110 190 185 130 180 180 1700 1550 Overloaded Moves . | . . . . . . . . . . Propulsion Burnouts . | . . . . . . . . . . Robots Hopped . | . . . . . . . . . . Cave-ins Triggered . | . . . . . . . . . . Exploration Rate (%) 47 | 2 48 55 66 30 3 75 72 98 29 Regions Visited 9 Branch Regions 4 Pre-discovered Areas . | . . . . . . . . . . Known Exits Taken 4 | . 1 1 1 . . 1 . . . Unknown Exits Taken 5 | 1 . . . 1 1 . 1 1 . Scrap Searched . | . . . . . . . . . . Spaces Dug 23 | . . . 20 3 . . . . . Terrain Destroyed 375 | . . 33 131 42 3 2 1 4 159 Melee 7 | . . . 4 3 . . . . . Projectile 24 | . . . 8 4 . 2 1 4 5 AOE 344 | . . 33 119 35 3 . . . 154 Terrain Rammed . | . . . . . . . . . . Walls Destroyed . | . . . . . . . . . . Machines Disabled . | . . . . . . . . . . Actions | -11 -10 -9 -8 -7 -6 -6 -6 -6 -6 --------- Run | Scr Mat Mat Mat Fac Fac Ext Cet Arc Hub Total 5651 | 4 446 607 1414 1640 128 632 222 252 306 Wait 865 | . 78 21 300 358 4 15 4 13 72 Move 3984 | . 307 498 891 1096 97 519 177 206 193 Hop . | . . . . . . . . . . Pick Up 121 | . 12 9 32 25 3 21 9 4 6 Fast Attach 17 | . . . 9 7 . . . . 1 Attach 45 | . 1 4 9 11 4 5 4 3 4 Detach . | . . . . . . . . . . Swap 122 | 2 6 8 35 42 4 20 2 . 3 Drop 95 | 2 8 6 31 23 2 9 5 1 8 Fire 370 | . 34 61 96 73 14 28 21 25 18 Melee 20 | . . . 11 5 . 4 . . . Ram . | . . . . . . . . . . Kick . | . . . . . . . . . . Crush 1 | . . . . . . . . . 1 Escape Stasis 11 | . . . . . . 11 . . . Rewire . | . . . . . . . . . . Trap . | . . . . . . . . . . Miscellaneous . | . . . . . . . . . . Route ------- -11/Scrapyard -10/Materials (discovered 4 exits: *Mat x3 / [*Min]) -9/Materials (discovered 2 exits: *Mat / Min) -8/Materials (discovered 3 exits: *Fac / Sto x2) -7/Factory (discovered 2 exits: *Fac / *Low) -6/Factory -6/Extension (discovered 2 exits: [*Fac] / *Cet) -6/Cetus -6/Archives (discovered 3 exits: [*Fac] / [*Hub x2]) -6/Hub_04(d) (discovered 1 exit: [*Fac]) History --------- Turn | Location | Event 5 | -11/Scrapyard | Discovered new exit (range 0) 5 | -11/Scrapyard | Entered Materials 254 | -10/Materials | Discovered new exit (range 9) 313 | -10/Materials | Build established: Mutant 443 | -10/Materials | Discovered new exit (range 12) 450 | -10/Materials | Identified exit to Materials 489 | -10/Materials | Entered another Materials area 489 | -9/Materials | Evolved 2 slots: Utility x2 993 | -9/Materials | Identified exit to Mines 1196 | -9/Materials | Discovered new exit (range 16) 1221 | -9/Materials | Identified exit to Materials 1223 | -9/Materials | Entered another Materials area 1223 | -8/Materials | Evolved 2 slots: Utility x2 1263 | -8/Materials | Build established: Scavenger-Mutant 2009 | -8/Materials | Repaired Adv. Sensor Array 2095 | -8/Materials | Identified exit to Storage 2193 | -8/Materials | Lost 3 parts (1u2w) 2305 | -8/Materials | Core integrity fell below 50% 2379 | -8/Materials | Repaired Imp. Grenade Launcher 2430 | -8/Materials | Repaired Lgt. Angular Momentum Engine 2469 | -8/Materials | Repaired Hpw. Shotgun 3182 | -8/Materials | Discovered new exit (range 4) 3199 | -8/Materials | Identified exit to Factory 3202 | -8/Materials | Entered Factory 3202 | -7/Factory | Evolved 2 slots: Propulsion x1, Weapon x1 3421 | -7/Factory | Discovered new exit (range 16) 3439 | -7/Factory | Identified exit to Lower Caves 3472 | -7/Factory | Repaired Hvy. Assault Rifle 3493 | -7/Factory | Build established: Scavenger-Skirmisher 4326 | -7/Factory | Fabricated Hacking Suite (x1) 4523 | -7/Factory | Garrison activated, responded to threat 5115 | -7/Factory | Lost 4 parts (1u3w) 5121 | -7/Factory | Destroyed 8 combat bots 5516 | -7/Factory | Discovered new exit (range 9) 5545 | -7/Factory | Entered another Factory area 5545 | -6/Factory | Evolved 2 slots: Propulsion x1, Utility x1 5724 | -6/Factory | Discovered new exit (range 9) 5734 | -6/Factory | Entered Extension 5846 | -6/Extension | Rescued a captive Derelict 5847 | -6/Extension | Rescued a captive Derelict 5936 | -6/Extension | Rescued A7 5994 | -6/Extension | Rescued a captive Derelict 6029 | -6/Extension | Rescued a captive Derelict 6031 | -6/Extension | Rescued a captive Derelict 6033 | -6/Extension | Spotted B-75 Beast 6042 | -6/Extension | Spotted B-75 Beast 6059 | -6/Extension | Allies destroyed B-75 Beast 6079 | -6/Extension | Destroyed B-75 Beast 6093 | -6/Extension | Lost 4 parts (1p1u2w) 6238 | -6/Extension | Identified exit to Cetus 6297 | -6/Extension | Rescued a captive Derelict 6298 | -6/Extension | Rescued a captive Derelict 6424 | -6/Extension | Rescued a captive Derelict 6552 | -6/Extension | Discovered new exit (range 10) 6598 | -6/Extension | Entered Cetus 6598 | -6/Cetus | Accompanied by 7 allies (A7) 6603 | -6/Cetus | Acquired a Cetus Manufacturing Module code from A7 6622 | -6/Cetus | Spotted Cetus Guard 6622 | -6/Cetus | Spotted Cetus Guard 6624 | -6/Cetus | Spotted Cetus Guard 6624 | -6/Cetus | Spotted Cetus Guard 6632 | -6/Cetus | Destroyed Cetus Guard 6640 | -6/Cetus | Allies destroyed Cetus Guard 6651 | -6/Cetus | Destroyed Cetus Guard 6664 | -6/Cetus | Allies destroyed Cetus Guard 6680 | -6/Cetus | Lost 3 parts (1n1u1w) 6794 | -6/Cetus | Escorted A7 to Cetus Mainframe 6899 | -6/Cetus | Discovered new exit (range 16) 6924 | -6/Cetus | Entered Archives 6924 | -6/Archives | Accompanied by 1 ally (A7) 6929 | -6/Archives | Received a hacking code to weaken MAIN.C 7064 | -6/Archives | Lost 4 parts (3n1u) 7140 | -6/Archives | Discovered new exit (range 15) 7167 | -6/Archives | Discovered new exit (range 16) 7178 | -6/Archives | Unable to access archive contents 7185 | -6/Archives | Discovered new exit (range 15) 7196 | -6/Archives | Unable to access archive contents 7381 | -6/Archives | Entered Hub_04(d) 7398 | -6/Hub_04(d) | Build established: Scavenger-Tank 7694 | -6/Hub_04(d) | Lost 3 parts (1n1u1w) 7822 | -6/Hub_04(d) | Network Hub disabled 7822 | -6/Hub_04(d) | Spotted Lightning 7822 | -6/Hub_04(d) | Spotted Lightning 7822 | -6/Hub_04(d) | Spotted Lightning 7822 | -6/Hub_04(d) | Spotted Lightning 7822 | -6/Hub_04(d) | Spotted Lightning 7822 | -6/Hub_04(d) | Spotted Lightning 7822 | -6/Hub_04(d) | Spotted Lightning 7822 | -6/Hub_04(d) | Spotted Lightning 7823 | -6/Hub_04(d) | Spotted Lightning 7824 | -6/Hub_04(d) | Spotted Lightning 7825 | -6/Hub_04(d) | Spotted Lightning 7825 | -6/Hub_04(d) | Spotted Lightning 7834 | -6/Hub_04(d) | Core integrity fell below 50% 7840 | -6/Hub_04(d) | System corruption reached 10% 7848 | -6/Hub_04(d) | Discovered new exit (range 12) 7849 | -6/Hub_04(d) | Core integrity fell below 20% 7850 | -6/Hub_04(d) | Destroyed by Lightning with EMDS Last Messages --------------- Hvy. Laser destroyed. Penetrated by EMDS Slug. EMDS Slug penetrates Wall. W-25 Informer sends out distress signal. Penetrated by EMDS Slug. Med. Treads destroyed. Penetrated by EMDS Slug. Dropped Lrg. Storage Unit. EMDS Slug penetrates Wall. Critical hit. Rnf. Deuterium Engine destroyed. Penetrated by EMDS Slug. Dropped Lrg. Storage Unit. Penetrated by EMDS Slug. Dropped Lrg. Storage Unit. EMDS Slug penetrates Wall. Centrium Heavy Treads destroyed. Penetrated by EMDS Slug. EXIT=FOUND EMDS Slug penetrates Wall. Map ----- +----------------------------------------------------+ | ?????????????????????????????????????????????? | | ?????????????????????????????????????????????? | | ?????????????????????????????????????????????? | | ?????????????????????????????????????????????? | | ?????????????????????????????????????????????? | | ?????????????????????????????????????????????? | | ?????????????????????????????????????????????? | | ?????????????????????????????????????????????? | | ?????????????????????????????????????????????? | | ?????????????????????????????????????????????? | | ?????????????????????????????????????????????? | | ?????????????????????????????????????????????? | | ?????????????????????????????????????????????? | | ?????????????????????????????????????????????? | | ?????????????????????????????????????????????? | | ??????????????????????###????## ???????????### | | ????????????????????? ??#?? ??????????#%= | | ????????????????????? T" ##########!% | | ????????????????????? k " !!!%%/*% | | ????????????????????? k ?????# ## #######== | | ?????????????????#####/#############/#######*! | | ?????????????????# Y # #*% | | ?????????????????# # #! | | ?????????# ####### # """" """" #= | | ?????????? w/ # """" """" # | | ?????????????????# @ # """" """" ### | | ???????????#####?# # """" """" #?? | | ???????????# ?# # #?? | | ???????????# ?# # """" #?? | | ???????????# ## # """" #?? | | ????????##??# # # """" #?? | | ??####### ## # # """" #?? | | ??# #/ # !! #?? | | ??# !!!#######h##;#######+#######?? | | ??# """"""""""!!![! ! #### #???????? | | ??# " !!|![*[ * "%* #???????? | | ??# " [[!!! #### + #? | | ??# "[ ![!] ! #??# # #? | | ??# " ![""############??# # #? | | ??# " " #? #? | | ??# " " #??#####? | | ??# " """""""""+###+##??+###???????? | | ??# " %! "" ???????????????????? | | ??? " "" ] #??????????????????? | | ??? " "" #??????????????????? | | ???? " "" #??????????????????? | | ???? """"""""""""" #??????????????????? | | ?????? " ==#??????????????????? | | ???????? # ==#??????????????????? | | ???????????####### " #??????????????????? | +----------------------------------------------------+ Best States ------------- Heat Dissipation 64 Energy Generation 18 Energy Capacity 290 Matter Stores 400 Matter Capacity 400 Sight Range 16 Robot Scan Range 16 Terrain Scan Range 14 Terrain Scan Density 110 Armor Coverage 225 Propulsion Shielding 66 Weapon Cycling 15 Evasion (%) 50 Recoil Reduction 4 Energy Filtering 30 Offensive Hacking 20 Defensive Hacking 10 Item Schematics ----------------- Hacking Suite | -9/Materials | Scanalyzed Hrd. Light Armor Plating | -9/Materials | Scanalyzed Terrain Scanner | -9/Materials | Scanalyzed Seismic Analyzer | -9/Materials | Scanalyzed Imp. Terrain Scan Processor | -8/Materials | Scanalyzed System Shield | -6/Factory | Scanalyzed Weapon Cycler | -6/Factory | Scanalyzed Med. Treads | -6/Factory | Scanalyzed Energy Filter | -6/Factory | Scanalyzed Hvy. Assault Rifle | -6/Factory | Scanalyzed Robot Schematics ------------------ None Fabricated ------------ Hacking Suite | x1 | -7/Factory Alien Tech Used ----------------- None Achievements -------------- None Challenges ------------ None Game ------ Seed SniperBottomlessHumpback Manual? 0 Play Time 01:12:37 Cumulative 169.5 hours Start 2020.12.13 @ 16:10:38 End 2020.12.13 @ 18:54:55 Sessions 3 Manual Loads 0 Difficulty Rogue Special Mode None Game No. 200 Rogue 200 Adventurer 0 Explorer 0 Win Type - Total 2 Types 2/0/0/0/0/0/0/0/0 Lore% 56 Gallery% 75 Achievement% 55 Wizard Run 0 Options --------- ASCII 0 Keyboard 0 Movement Mouse Keybinds 1 Fullscreen 2 Font 24/Smallcaps Map View 76x50 Tactical HUD 1 Map Filters NONE Filters NONE Steam 1 RUN: 25dc1e98-77e0-42f9-9aa9-1455e82b1d20